fUSD/lending_fUSD_20251109
["ID","MTS","AMOUNT","RATE_DAILY","PERIOD"]
[393474507,1762705839329,-399.0,0.00017649,2]
[393474509,1762705839339,-1151.0,0.00017663,2]
[393474512,1762705839349,-1000.0,0.00017692,2]
[393474513,1762705839360,-1726.84557519,0.0001771,2]
[393474516,1762705839370,-1151.0,0.00017716,2]
[393474517,1762705839380,-7092.75584572,0.00017741,2]
[393474520,1762705839397,-3015.61738678,0.000178,2]
[393474523,1762705839415,-861.56831511,0.000178,2]
[393474525,1762705839426,-3488.872,0.00017801,2]
[393474527,1762705839436,-166.633,0.00017801,2]
[393474529,1762705839447,-3877.18570182,0.00017811,2]
[393474531,1762705839458,-3877.18570182,0.00017822,2]
[393474533,1762705839469,-4558.0,0.00017854,2]
[393474534,1762705839479,-200.0,0.00017856,2]
[393474536,1762705839489,-514.70956381,0.00017873,2]
[393474538,1762705839500,-177.90751569,0.0001789,2]
[393474540,1762705839510,-177.90751565,0.00017893,2]
[393474542,1762705839521,-682.0569108,0.00017896,2]
[393474544,1762705839532,-682.05691075,0.00017897,2]
[393474546,1762705839544,-151.0,0.00017897,2]
[393474548,1762705839555,-682.05691075,0.00017897,2]
[393474550,1762705839566,-682.05691075,0.00017898,2]
[393474552,1762705839576,-682.05691075,0.00017899,2]
[393474554,1762705839586,-682.05691075,0.00017899,2]
[393474556,1762705839598,-4614.4999,0.000179,2]
[393474558,1762705839608,-160.56398268,0.000179,2]
[393474560,1762705839618,-5000.0,0.000179,2]
[393474562,1762705839629,-7092.75584572,0.000179,2]
[393474564,1762705839641,-682.05691075,0.000179,2]
[393474566,1762705839653,-207.14834687,0.000179,2]
[393474569,1762705839664,-240.60962942,0.000179,2]
[393474571,1762705839674,-585.31417502,0.00017907,2]
[393474573,1762705839685,-150.0,0.00017945,2]
[393474575,1762705839695,-150.0,0.00017945,2]
[393474577,1762705839706,-500.0,0.00017945,2]
[393474579,1762705839718,-500.0,0.00017945,2]
[393474581,1762705839729,-150.0,0.00017945,2]
[393474583,1762705839739,-500.0,0.00017945,2]
[393474585,1762705839749,-150.0,0.00017945,2]
[393474587,1762705839759,-500.0,0.00017945,2]
[393474589,1762705839769,-2175.0,0.00017961,2]
[393474591,1762705839779,-500.0,0.00017972,2]
[393474593,1762705839789,-500.0,0.00017973,2]
[393474595,1762705839800,-500.0,0.00017973,2]
[393474597,1762705839810,-266846.60939819,0.0001799,2]
[393474599,1762705839820,-151.0,0.00017992,2]
[393474601,1762705839830,-151.0,0.00017992,2]
[393474603,1762705839841,-689448.62973448,0.00017995,2]
[393474605,1762705839851,-1494.23967867,0.00017999,5]
[393474607,1762705839860,-500.0,0.00017999,2]
[393474609,1762705839871,-500.0,0.00017999,2]
[393474611,1762705839880,-500.0,0.00017999,2]
[393474613,1762705839890,-209.18505361,0.00017999,2]
[393474615,1762705839900,-300.0,0.00017999,2]
[393474617,1762705839912,-300.0,0.00017999,2]
[393474619,1762705839922,-500.0,0.00017999,2]
[393474621,1762705839933,-589.90645797,0.00017999,2]
[393474623,1762705839945,-5136.4033413,0.00017999,2]
[393474625,1762705839957,-300.0,0.00017999,2]
[393474627,1762705839967,-8746.41712849,0.00017999,2]
[393474629,1762705839979,-300.0,0.00017999,2]
[393474631,1762705839989,-10848.3768719,0.00017999,2]
[393474633,1762705839999,-3462.0,0.00018,2]
[393474635,1762705840009,-324.38850834,0.00018,2]
[393474637,1762705840019,-183.89480744,0.00018,2]
[393474639,1762705840028,-151.0,0.00018,2]
[393474641,1762705840037,-151.0,0.00018,2]
[393474643,1762705840047,-154.08632714,0.00018,2]
[393474644,1762705840056,-2842909.27127581,0.00018,2]
[393474645,1762705840069,-6248.1982042,0.00018,2]
[393474646,1762705840081,-1050.50000006,0.00018,2]
[393474647,1762705840093,-22413.47170572,0.00018,2]
[393474648,1762705840106,-5415.5,0.00018,2]
[393474649,1762705840156,-2028.84814833,0.00018,2]
[393474652,1762705840562,-177.90751565,0.00017895,2]
[393474653,1762705840572,-1646.71748436,0.00018,2]
[393474654,1762705840585,-477.38432657,0.00018,2]
[393474655,1762705840599,-13926.67665796,0.00018,2]
[393474656,1762705840610,-48152.95596902,0.00018,2]
[393474657,1762705840622,-2126.0,0.00018,2]
[393474658,1762705840639,-2553.2295503,0.00018,2]
[393474659,1762705840667,-284420.97228821,0.00018,2]
[393474660,1762705840685,-1110.45555854,0.00018,2]
[393474690,1762705845686,-331.46113,0.00017833,2]
[393474691,1762705845702,-3545.72457182,0.00017833,2]
[393474692,1762705845712,-113.27542818,0.00017898,2]
[393474693,1762705845818,-64.63208747,0.00017898,2]
[393474694,1762705845828,-274.98732484,0.00018,2]
[393474706,1762705846070,-533.77400246,0.00018,2]
[393474712,1762705846106,-36500.0,0.00018,2]
[393474716,1762705846128,-19707.0,0.00018,2]
[393474718,1762705846139,-31065.0,0.00018,2]
[393474722,1762705846477,-1862.49006421,0.00018,2]
[393474723,1762705846490,-834.7800045,0.00018,2]
[393474724,1762705846500,-507.00284825,0.00018,2]
[393474725,1762705846512,-477.0000032,0.00018,2]
[393474726,1762705846614,-1625.74283323,0.00017844,2]
[393474727,1762705846896,-2251.44286859,0.00017844,2]
[393474728,1762705846906,-8258.42022586,0.00018,2]
[393474884,1762707032466,-300.0,0.00016524,2]
[393474885,1762707032476,-245.31,0.00016524,2]
[393474886,1762707032489,-352.59879329,0.00016524,2]
[393474887,1762707032523,-602.09120671,0.00016524,2]
[393474888,1762707032533,-195.0,0.00016524,2]
[393474889,1762707032542,-300.0,0.00016525,2]
[393474890,1762707032551,-195.0,0.00016525,2]
[393474891,1762707032561,-315.0,0.00016525,2]
[393474892,1762707032571,-301.0,0.00016525,2]
[393474893,1762707032581,-352.48429484,0.00016525,2]
[393474894,1762707032639,-147.51570516,0.00016525,2]
[393474895,1762707032650,-627.22871936,0.00016525,2]
[393474896,1762707032660,-193.31002887,0.00016525,2]
[393474897,1762707032670,-500.0,0.00016525,2]
[393474898,1762707032681,-254.2371373,0.00016525,2]
[393474899,1762707032691,-500.0,0.00016525,2]
[393474900,1762707032701,-500.0,0.00016525,2]
[393474901,1762707032711,-500.0,0.00016525,2]
[393474902,1762707032722,-500.0,0.00016525,2]
[393474904,1762707032731,-500.0,0.00016525,2]
[393474906,1762707032741,-500.0,0.00016525,2]
[393474908,1762707032750,-500.0,0.00016525,2]
[393474910,1762707032760,-521.49145163,0.00016525,2]
[393474912,1762707032770,-500.0,0.00016525,2]
[393474914,1762707032780,-500.0,0.00016525,2]
[393474916,1762707032790,-554.15884027,0.00016525,2]
[393474918,1762707032800,-500.0,0.00016525,2]
[393474920,1762707032810,-500.0,0.00016525,2]
[393474922,1762707032819,-500.0,0.00016525,2]
[393474924,1762707032829,-500.0,0.00016525,2]
[393474926,1762707032840,-500.0,0.00016525,2]
[393474928,1762707032849,-500.0,0.00016525,2]
[393474931,1762707032869,-500.0,0.00016525,2]
[393474933,1762707032881,-500.0,0.00016525,2]
[393474935,1762707032891,-500.0,0.00016525,2]
[393474937,1762707032901,-500.0,0.00016525,2]
[393474939,1762707032911,-500.0,0.00016525,2]
[393474941,1762707032920,-500.0,0.00016525,2]
[393474943,1762707032930,-500.0,0.00016525,2]
[393474945,1762707032941,-500.0,0.00016525,2]
[393474947,1762707032951,-500.0,0.00016525,2]
[393474950,1762707032961,-500.0,0.00016525,2]
[393474952,1762707032971,-500.0,0.00016525,2]
[393474954,1762707032980,-500.0,0.00016525,2]
[393474956,1762707032990,-212.1983874,0.00016525,2]
[393474958,1762707033003,-500.0,0.00016525,2]
[393474960,1762707033016,-500.0,0.00016525,2]
[393474961,1762707033026,-500.0,0.00016525,2]
[393474963,1762707033037,-500.0,0.00016525,2]
[393474966,1762707033047,-500.0,0.00016525,2]
[393474967,1762707033059,-500.0,0.00016525,2]
[393474970,1762707033069,-500.0,0.00016525,2]
[393474972,1762707033080,-500.0,0.00016525,2]
[393474974,1762707033090,-500.0,0.00016525,2]
[393474976,1762707033100,-500.0,0.00016525,2]
[393474978,1762707033109,-500.0,0.00016525,2]
[393474980,1762707033119,-500.0,0.00016525,2]
[393474982,1762707033129,-500.0,0.00016525,2]
[393474983,1762707033139,-500.0,0.00016525,2]
[393474984,1762707033149,-450.0,0.00016525,2]
[393474985,1762707033159,-500.0,0.00016525,2]
[393474986,1762707033168,-500.0,0.00016525,2]
[393474987,1762707033178,-500.0,0.00016525,2]
[393474988,1762707033188,-500.0,0.00016525,2]
[393474989,1762707033197,-500.0,0.00016525,2]
[393474990,1762707033207,-500.0,0.00016525,2]
[393474991,1762707033216,-500.0,0.00016525,2]
[393474992,1762707033226,-300.0,0.00016526,2]
[393474993,1762707033237,-300.0,0.00016526,2]
[393474994,1762707033247,-300.0,0.00016526,2]
[393474995,1762707033257,-5945.75,0.0001658,2]
[393474996,1762707033267,-250.0,0.00016653,2]
[393474997,1762707033276,-200.0,0.00016993,2]
[393474998,1762707033288,-359.22,0.00017008,2]
[393474999,1762707033297,-176.67,0.00017026,2]
[393475000,1762707033308,-165.06,0.00017089,2]
[393475001,1762707033318,-1000.0,0.00017148,2]
[393475002,1762707033327,-1364.13,0.00017245,2]
[393475003,1762707033337,-477.41,0.00017293,2]
[393475004,1762707033347,-698.95,0.00017293,2]
[393475005,1762707033357,-698.95,0.00017293,2]
[393475006,1762707033366,-698.95,0.000173,2]
[393475007,1762707033376,-698.95,0.000173,2]
[393475008,1762707033386,-698.95,0.00017341,2]
[393475009,1762707033396,-954.24,0.00017341,2]
[393475010,1762707033406,-549.32,0.00017362,2]
[393475011,1762707033416,-549.32,0.00017362,2]
[393475012,1762707033425,-549.32,0.00017362,2]
[393475013,1762707033435,-549.32,0.00017362,2]
[393475014,1762707033445,-549.32,0.00017362,2]
[393475015,1762707033454,-549.43,0.00017362,2]
[393475016,1762707033465,-549.32,0.00017362,2]
[393475017,1762707033474,-549.32,0.00017478,2]
[393475018,1762707033484,-549.32,0.000175,2]
[393475019,1762707033494,-549.32,0.000175,2]
[393475020,1762707033504,-549.32,0.000175,2]
[393475021,1762707033514,-1098.01,0.000175,2]
[393475022,1762707033525,-549.43,0.000175,2]
[393475023,1762707033542,-549.32,0.000175,2]
[393475024,1762707033553,-549.32,0.000175,2]
[393475025,1762707033563,-549.32,0.000175,2]
[393475026,1762707033574,-380.99,0.000175,2]
[393475027,1762707033585,-549.32,0.000175,2]
[393475028,1762707033597,-337.96,0.000175,2]
[393475029,1762707033607,-549.32,0.000175,2]
[393475030,1762707033618,-549.32,0.000175,2]
[393475031,1762707033629,-169.14,0.000175,2]
[393475032,1762707033640,-549.32,0.000175,2]
[393475033,1762707033651,-549.32,0.000175,2]
[393475034,1762707033661,-415.98,0.000175,2]
[393475035,1762707033672,-548.44,0.000175,2]
[393475036,1762707033683,-9163.67,0.00017728,2]
[393475037,1762707033693,-9302.99,0.00017728,2]
[393475038,1762707033703,-4074.87,0.00017728,2]
[393475039,1762707033713,-1726.84557519,0.00017737,2]
[393475040,1762707033724,-1000.0,0.000178,2]
[393475041,1762707033734,-2500.0,0.000178,2]
[393475042,1762707033745,-2441.587,0.000178,2]
[393475043,1762707033755,-223.57872326,0.000178,2]
[393475044,1762707033766,-200.0,0.00017856,2]
[393475045,1762707033776,-478.20968403,0.00017868,2]
[393475046,1762707033791,-151.0,0.00017889,2]
[393475047,1762707033807,-151.0,0.00017889,2]
[393475048,1762707033818,-151.0,0.00017889,2]
[393475049,1762707033829,-151.0,0.00017889,2]
[393475050,1762707033839,-151.0,0.00017889,2]
[393475051,1762707033849,-151.0,0.00017889,2]
[393475052,1762707033859,-151.0,0.00017889,2]
[393475053,1762707033869,-151.0,0.00017889,2]
[393475054,1762707033879,-151.0,0.00017889,2]
[393475055,1762707033889,-261.91721965,0.00017889,2]
[393475056,1762707033900,-582.10911192,0.00017899,2]
[393475057,1762707033910,-500.0,0.00017899,2]
[393475058,1762707033920,-2791.098,0.00017899,2]
[393475059,1762707033930,-166.632,0.00017899,2]
[393475060,1762707033941,-500.0,0.00017899,2]
[393475061,1762707033951,-753.8191,0.000179,2]
[393475062,1762707033962,-96751.33576477,0.000179,2]
[393475063,1762707033984,-304.35354436,0.000179,2]
[393475064,1762707033997,-4600.0,0.000179,2]
[393475078,1762707038373,-252.251498,0.000179,2]
[393475079,1762707038385,-144631.90619287,0.000179,2]
[393475080,1762707038395,-549.32,0.000179,2]
[393475081,1762707038405,-5000.0,0.000179,2]
[393475082,1762707038415,-2990.51090856,0.000179,2]
[393475083,1762707038426,-150.0,0.00017945,2]
[393475084,1762707038435,-500.0,0.00017945,2]
[393475085,1762707038445,-150.0,0.00017945,2]
[393475086,1762707038456,-500.0,0.00017945,2]
[393475087,1762707038467,-150.0,0.00017945,2]
[393475088,1762707038477,-150.0,0.00017945,2]
[393475089,1762707038488,-500.0,0.00017945,2]
[393475090,1762707038498,-150.0,0.00017945,2]
[393475091,1762707038508,-150.0,0.00017945,2]
[393475092,1762707038518,-150.0,0.00017945,2]
[393475093,1762707038529,-371.83053399,0.00017973,2]
[393475094,1762707038541,-1494.23967867,0.00017999,5]
[393475095,1762707038552,-300.0,0.00017999,2]
[393475096,1762707038562,-300.0,0.00017999,2]
[393475097,1762707038572,-589.90645797,0.00017999,2]
[393475098,1762707038582,-324.38850834,0.00018,2]
[393475100,1762707038592,-183.89480744,0.00018,2]
[393475102,1762707038602,-151.0,0.00018,2]
[393475103,1762707038613,-151.0,0.00018,2]
[393475105,1762707038623,-154.08632714,0.00018,2]
[393475106,1762707038633,-250.0,0.00018,2]
[393475107,1762707038644,-250.0,0.00018,2]
[393475108,1762707038655,-250.0,0.00018,2]
[393475109,1762707038665,-250.0,0.00018,2]
[393475110,1762707038676,-250.0,0.00018,2]
[393475111,1762707038686,-250.0,0.00018,2]
[393475112,1762707038697,-250.0,0.00018,2]
[393475113,1762707038707,-250.0,0.00018,2]
[393475114,1762707038716,-250.0,0.00018,2]
[393475115,1762707038727,-250.0,0.00018,2]
[393475116,1762707038736,-250.0,0.00018,2]
[393475117,1762707038746,-250.0,0.00018,2]
[393475118,1762707038755,-250.0,0.00018,2]
[393475119,1762707038766,-250.0,0.00018,2]
[393475120,1762707038777,-250.0,0.00018,2]
[393475121,1762707038786,-250.0,0.00018,2]
[393475122,1762707038798,-250.0,0.00018,2]
[393475123,1762707038808,-250.0,0.00018,2]
[393475124,1762707038818,-250.0,0.00018,2]
[393475125,1762707038828,-250.0,0.00018,2]
[393475126,1762707038839,-250.0,0.00018,2]
[393475127,1762707038848,-250.0,0.00018,2]
[393475128,1762707038858,-250.0,0.00018,2]
[393475129,1762707038868,-250.0,0.00018,2]
[393475130,1762707038879,-250.0,0.00018,2]
[393475131,1762707038888,-250.0,0.00018,2]
[393475132,1762707038898,-250.0,0.00018,2]
[393475133,1762707038908,-281.4,0.00018,2]
[393475134,1762707038918,-511.99150872,0.00018,2]
[393475135,1762707038928,-12557.5959341,0.00018,2]
[393475136,1762707038938,-955.9164984,0.00018,2]
[393475137,1762707038950,-12794.5661766,0.00018,2]
[393475138,1762707038960,-154.6078157,0.00018,2]
[393475139,1762707038971,-259.38850282,0.00018,2]
[393475140,1762707038982,-837.349632,0.00018,2]
[393475141,1762707038992,-415.374358,0.00018,2]
[393475142,1762707039003,-966.750358,0.00018,2]
[393475143,1762707039014,-151.47,0.00018001,2]
[393475144,1762707039029,-2175.0,0.00018009,2]
[393475145,1762707039041,-163.36,0.00018023,2]
[393475146,1762707039052,-177.90751565,0.00018031,2]
[393475147,1762707039063,-2175.0,0.00018033,2]
[393475148,1762707039073,-420.0,0.00018057,2]
[393475149,1762707039084,-150.0,0.00018082,2]
[393475150,1762707039094,-500.0,0.00018082,2]
[393475151,1762707039105,-500.0,0.00018082,2]
[393475152,1762707039115,-150.0,0.00018082,2]
[393475153,1762707039126,-500.0,0.00018082,2]
[393475154,1762707039137,-150.0,0.00018082,2]
[393475155,1762707039147,-150.0,0.00018082,2]
[393475156,1762707039156,-150.0,0.00018082,2]
[393475157,1762707039168,-1000.0,0.00018082,2]
[393475158,1762707039179,-166.66,0.00018125,2]
[393475159,1762707039190,-4558.0,0.00018125,2]
[393475160,1762707039200,-2175.0,0.00018131,2]
[393475161,1762707039210,-1680.0,0.00018147,2]
[393475162,1762707039220,-300.0,0.00018176,2]
[393475163,1762707039230,-195.0,0.00018176,2]
[393475164,1762707039241,-443.5040445,0.00018179,2]
[393475165,1762707039251,-1098.48,0.00018183,2]
[393475166,1762707039262,-1098.21,0.00018183,2]
[393475167,1762707039275,-150.0,0.00018219,2]
[393475168,1762707039286,-356.0,0.00018219,2]
[393475169,1762707039296,-170.86147635,0.00018219,2]
[393475170,1762707039306,-200.0,0.00018219,2]
[393475171,1762707039317,-557.89774482,0.00018219,2]
[393475172,1762707039327,-200.0,0.00018219,2]
[393475173,1762707039337,-250.0,0.00018219,2]
[393475174,1762707039346,-150.0,0.00018219,2]
[393475175,1762707039356,-1275.21,0.00018252,2]
[393475176,1762707039366,-698.95,0.00018252,2]
[393475177,1762707039376,-698.95,0.00018252,2]
[393475178,1762707039386,-698.95,0.00018252,2]
[393475179,1762707039395,-951.39,0.00018252,2]
[393475180,1762707039405,-477.41,0.00018252,2]
[393475181,1762707039415,-698.95,0.00018252,2]
[393475182,1762707039425,-698.95,0.00018252,2]
[393475183,1762707039435,-698.95,0.00018252,2]
[393475184,1762707039445,-527.44,0.00018252,2]
[393475185,1762707039454,-165.06,0.0001831,2]
[393475186,1762707039464,-150.0,0.00018356,2]
[393475187,1762707039474,-150.0,0.00018356,2]
[393475188,1762707039484,-1269.06864682,0.00018446,2]
[393475189,1762707039493,-500.0,0.00018466,2]
[393475190,1762707039502,-250.0,0.00018493,2]
[393475191,1762707039511,-273.00202241,0.00018493,2]
[393475192,1762707039521,-2175.0,0.00018547,2]
[393475193,1762707039531,-2175.0,0.00018635,2]
[393475194,1762707039541,-2175.0,0.0001869,2]
[393475195,1762707039551,-2175.0,0.00018695,2]
[393475196,1762707039562,-166.66,0.00018704,2]
[393475197,1762707039572,-1000.0,0.0001876,2]
[393475198,1762707039582,-500.0,0.00018973,2]
[393475199,1762707039593,-500.0,0.00018999,2]
[393475200,1762707039603,-500.0,0.00018999,2]
[393475201,1762707039612,-333.0551169,0.00018999,2]
[393475202,1762707039622,-151.0,0.00019,2]
[393475203,1762707039632,-2299.12425488,0.00019,2]
[393475204,1762707039641,-300.0,0.00019,2]
[393475205,1762707039651,-126829.67954219,0.00019,2]
[393475206,1762707039661,-126829.67954219,0.00019,2]
[393475207,1762707039670,-126829.67954219,0.00019,2]
[393475208,1762707039679,-555.94784749,0.00019,2]
[393475209,1762707039689,-549.43,0.00019005,2]
[393475210,1762707039698,-549.43,0.00019005,2]
[393475211,1762707039708,-549.09,0.00019005,2]
[393475212,1762707039718,-337.99,0.00019032,2]
[393475213,1762707039728,-698.95,0.00019148,2]
[393475214,1762707039739,-176.67,0.00019154,2]
[393475215,1762707039750,-698.95,0.00019161,2]
[393475216,1762707039759,-698.95,0.00019161,2]
[393475217,1762707039769,-698.95,0.00019161,2]
[393475218,1762707039779,-698.95,0.00019161,2]
[393475219,1762707039790,-698.95,0.00019161,2]
[393475220,1762707039802,-430.69,0.00019161,2]
[393475221,1762707039811,-477.41,0.00019161,2]
[393475222,1762707039821,-477.41,0.00019161,2]
[393475223,1762707039831,-477.41,0.00019161,2]
[393475224,1762707039841,-477.41,0.00019161,2]
[393475225,1762707039851,-477.41,0.00019161,2]
[393475226,1762707039861,-477.41,0.00019161,2]
[393475227,1762707039871,-477.41,0.00019161,2]
[393475228,1762707039882,-477.41,0.00019161,2]
[393475229,1762707039892,-2326.0,0.00019178,2]
[393475230,1762707039903,-300.0,0.00019225,2]
[393475231,1762707039914,-2299.12425488,0.00019238,2]
[393475232,1762707039923,-2990.51090851,0.00019249,2]
[393475233,1762707039933,-166.66,0.00019283,2]
[393475234,1762707039943,-1000.0,0.00019292,2]
[393475235,1762707039953,-2170.22,0.00019339,2]
[393475236,1762707039963,-999.99,0.00019339,2]
[393475237,1762707039973,-9999.99,0.00019339,2]
[393475238,1762707039983,-5528.9,0.00019339,2]
[393475239,1762707039994,-150.99,0.00019339,2]
[393475240,1762707040006,-3425.0,0.00019372,2]
[393475241,1762707040016,-1316.0,0.00019372,2]
[393475242,1762707040030,-574.0,0.00019372,2]
[393475243,1762707040040,-608.0,0.00019372,2]
[393475244,1762707040052,-820.0,0.00019372,2]
[393475245,1762707040063,-1596.0,0.00019372,2]
[393475246,1762707040073,-813.0,0.00019372,2]
[393475247,1762707040083,-1273.0,0.00019372,2]
[393475248,1762707040092,-150.0,0.00019372,2]
[393475249,1762707040103,-6661.0,0.00019372,2]
[393475250,1762707040112,-559.0,0.00019372,2]
[393475251,1762707040122,-6478.0,0.00019372,2]
[393475252,1762707040131,-2142.0,0.00019372,2]
[393475253,1762707040140,-151.0,0.00019372,7]
[393475254,1762707040149,-151.0,0.00019372,7]
[393475255,1762707040159,-151.0,0.00019372,7]
[393475257,1762707040168,-165.224313,0.00019372,7]
[393475258,1762707040178,-151.0,0.00019372,7]
[393475259,1762707040186,-151.0,0.00019372,7]
[393475260,1762707040196,-151.0,0.00019372,7]
[393475261,1762707040205,-151.0,0.00019372,7]
[393475262,1762707040215,-151.0,0.00019372,7]
[393475264,1762707040224,-151.0,0.00019372,7]
[393475265,1762707040233,-151.0,0.00019372,7]
[393475266,1762707040243,-151.0,0.00019372,7]
[393475267,1762707040252,-151.0,0.00019372,7]
[393475268,1762707040261,-151.0,0.00019372,7]
[393475269,1762707040270,-151.0,0.00019372,7]
[393475270,1762707040280,-151.0,0.00019372,7]
[393475271,1762707040288,-166.218065,0.00019372,7]
[393475272,1762707040300,-151.0,0.00019372,7]
[393475274,1762707040309,-151.0,0.00019372,7]
[393475276,1762707040318,-151.0,0.00019372,7]
[393475278,1762707040328,-151.0,0.00019372,7]
[393475280,1762707040337,-151.0,0.00019372,7]
[393475282,1762707040346,-151.0,0.00019372,7]
[393475284,1762707040355,-151.0,0.00019372,7]
[393475286,1762707040365,-151.0,0.00019372,7]
[393475288,1762707040374,-151.0,0.00019372,7]
[393475290,1762707040384,-151.0,0.00019372,7]
[393475292,1762707040395,-151.0,0.00019372,7]
[393475294,1762707040404,-151.0,0.00019372,7]
[393475296,1762707040413,-151.0,0.00019372,7]
[393475298,1762707040423,-164.261186,0.00019372,7]
[393475299,1762707040432,-199.703718,0.00019372,7]
[393475300,1762707040442,-151.0,0.00019372,7]
[393475302,1762707040451,-151.0,0.00019372,7]
[393475304,1762707040460,-151.0,0.00019372,7]
[393475306,1762707040470,-151.0,0.00019372,7]
[393475309,1762707040479,-151.0,0.00019372,7]
[393475312,1762707040488,-151.0,0.00019372,7]
[393475315,1762707040498,-151.0,0.00019372,7]
[393475318,1762707040507,-151.0,0.00019372,7]
[393475321,1762707040516,-158.427453,0.00019372,7]
[393475324,1762707040526,-151.0,0.00019372,7]
[393475326,1762707040535,-151.0,0.00019372,7]
[393475328,1762707040544,-151.0,0.00019372,7]
[393475330,1762707040554,-151.0,0.00019372,7]
[393475332,1762707040564,-151.0,0.00019372,7]
[393475334,1762707040575,-151.0,0.00019372,7]
[393475336,1762707040585,-151.0,0.00019372,7]
[393475338,1762707040594,-151.0,0.00019372,7]
[393475340,1762707040604,-168.63083,0.00019372,7]
[393475342,1762707040614,-4867.0,0.00019372,2]
[393475344,1762707040624,-151.0,0.00019438,7]
[393475346,1762707040634,-159.813094,0.00019438,7]
[393475348,1762707040644,-180.071723,0.00019438,7]
[393475350,1762707040653,-416.60076811,0.00019438,7]
[393475352,1762707040663,-1000.0,0.00019438,2]
[393475354,1762707040672,-151.0,0.00019524,7]
[393475356,1762707040682,-151.0,0.00019524,7]
[393475358,1762707040691,-151.0,0.00019524,7]
[393475360,1762707040701,-161.189237,0.00019524,7]
[393475362,1762707040711,-151.0,0.00019524,7]
[393475364,1762707040721,-151.0,0.00019524,7]
[393475366,1762707040730,-151.0,0.00019524,7]
[393475368,1762707040739,-151.0,0.00019524,7]
[393475370,1762707040750,-151.0,0.00019524,7]
[393475372,1762707040759,-151.0,0.00019524,7]
[393475374,1762707040770,-155.663389,0.00019524,7]
[393475376,1762707040784,-165.06,0.0001953,2]
[393475378,1762707040794,-837.349632,0.00019693,2]
[393475379,1762707040805,-156.203306,0.00019693,2]
[393475380,1762707040815,-415.374358,0.00019693,2]
[393475381,1762707040824,-966.750358,0.00019693,2]
[393475382,1762707040833,-587.0,0.00019732,2]
[393475383,1762707040843,-160.0,0.000198,3]
[393475385,1762707040853,-160.0,0.000198,3]
[393475387,1762707040862,-1098.42,0.00019827,2]
[393475389,1762707040872,-1098.45,0.00019827,2]
[393475390,1762707040882,-1098.56,0.00019827,2]
[393475392,1762707040891,-1098.21,0.00019827,2]
[393475396,1762707040902,-177.01,0.00019854,2]
[393475398,1762707040911,-166.66,0.00019862,2]
[393475400,1762707040921,-2351.0,0.00019929,2]
[393475402,1762707040930,-209.18505361,0.00019999,2]
[393475404,1762707040940,-181.0,0.0002,2]
[393475405,1762707040949,-64703.97985089,0.0002,2]
[393475406,1762707040959,-203.97,0.0002,2]
[393475407,1762707040968,-1024.8,0.0002,2]
[393475408,1762707040977,-447.0,0.0002,2]
[393475409,1762707040987,-184.12,0.0002,2]